fUSD/lending_fUSD_20250110
["ID","MTS","AMOUNT","RATE_DAILY","PERIOD"]
[348422448,1736524266246,-500.0,0.00010381,2]
[348422449,1736524266256,-856.71,0.00010381,2]
[348422450,1736524266265,-783.7,0.00010381,2]
[348422451,1736524266275,-794.78,0.00010381,2]
[348422452,1736524266285,-1062.86,0.00010381,2]
[348422453,1736524266294,-3899.76,0.00010381,2]
[348422454,1736524266303,-500.0,0.00010381,2]
[348422455,1736524266313,-500.0,0.00010381,2]
[348422456,1736524266324,-500.0,0.00010381,2]
[348422457,1736524266333,-634.52,0.00010381,2]
[348422458,1736524266342,-500.0,0.00010381,2]
[348422459,1736524266352,-1022.03,0.00010381,2]
[348422460,1736524266361,-939.3,0.00010381,2]
[348422461,1736524266372,-691.24,0.00010381,2]
[348422462,1736524266384,-332.30185545,0.00010381,2]
[348422463,1736524266394,-4054.05,0.00010381,2]
[348422464,1736524266404,-813.45,0.00010381,2]
[348422465,1736524266414,-500.0,0.00010381,2]
[348422466,1736524266423,-500.0,0.00010381,2]
[348422467,1736524266433,-1362.38,0.00010381,2]
[348422468,1736524266443,-500.0,0.00010381,2]
[348422469,1736524266454,-1051.14,0.00010381,2]
[348422470,1736524266467,-630.35,0.00010381,2]
[348422471,1736524266478,-1335.65,0.00010381,2]
[348422472,1736524266490,-941.46,0.00010381,2]
[348422473,1736524266501,-1314.49,0.00010381,2]
[348422474,1736524266512,-500.0,0.00010381,2]
[348422475,1736524266524,-500.0,0.00010381,2]
[348422476,1736524266534,-500.0,0.00010381,2]
[348422477,1736524266544,-500.0,0.00010381,2]
[348422478,1736524266556,-2098.32,0.00010381,2]
[348422479,1736524266567,-1156.61,0.00010381,2]
[348422480,1736524266578,-659.09,0.00010381,2]
[348422481,1736524266589,-500.0,0.00010381,2]
[348422482,1736524266599,-1381.15,0.00010381,2]
[348422483,1736524266609,-500.0,0.00010381,2]
[348422484,1736524266621,-500.0,0.00010381,2]
[348422485,1736524266634,-1912.15,0.00010381,2]
[348422486,1736524266645,-511.82,0.00010381,2]
[348422487,1736524266655,-951.49,0.00010381,2]
[348422488,1736524266666,-622.11,0.00010381,2]
[348422489,1736524266677,-500.0,0.00010381,2]
[348422490,1736524266688,-500.0,0.00010382,2]
[348422491,1736524266698,-500.0,0.00010382,2]
[348422492,1736524266708,-500.0,0.00010382,2]
[348422493,1736524266719,-952.88,0.00010382,2]
[348422494,1736524266730,-579.03029348,0.00010382,2]
[348422495,1736524266742,-500.0,0.00010382,2]
[348422496,1736524266753,-705.22,0.00010382,2]
[348422497,1736524266763,-974.31,0.00010382,2]
[348422498,1736524266775,-1038.13,0.00010382,2]
[348422499,1736524266786,-500.0,0.00010382,2]
[348422500,1736524266796,-579.82,0.00010382,2]
[348422501,1736524266807,-1012.33,0.00010382,2]
[348422502,1736524266818,-648.63,0.00010382,2]
[348422503,1736524266829,-500.0,0.00010382,2]
[348422504,1736524266841,-571.87,0.00010382,2]
[348422505,1736524266852,-500.0,0.00010382,2]
[348422506,1736524266862,-1172.84,0.00010382,2]
[348422507,1736524266873,-796.64,0.00010382,2]
[348422508,1736524266887,-974.54,0.00010382,2]
[348422509,1736524266899,-419.94088966,0.00010382,2]
[348422510,1736524266910,-1273.5,0.00010382,2]
[348422511,1736524266926,-659.75,0.00010382,2]
[348422512,1736524266937,-886.68,0.00010382,2]
[348422513,1736524266947,-500.0,0.00010382,2]
[348422514,1736524266959,-500.0,0.00010382,2]
[348422515,1736524266969,-1963.72,0.00010382,2]
[348422516,1736524266980,-6187.03,0.00010382,2]
[348422517,1736524266992,-1822.9,0.00010382,2]
[348422518,1736524267003,-2565.68,0.00010382,2]
[348422519,1736524267016,-3150.34,0.00010382,2]
[348422520,1736524267029,-694.47,0.00010382,2]
[348422521,1736524267046,-4721.83,0.00010383,2]
[348422522,1736524267059,-2272.62,0.00010383,2]
[348422523,1736524267070,-1591.49,0.00010383,2]
[348422524,1736524267081,-2329.78,0.00010383,2]
[348422525,1736524267094,-1432.42,0.00010383,2]
[348422526,1736524267105,-1975.6,0.00010394,2]
[348422527,1736524267116,-1883.34,0.00010421,2]
[348422528,1736524267127,-1704.97,0.00010421,2]
[348422529,1736524267142,-772.13,0.00010421,2]
[348422530,1736524267153,-4013.17,0.00010421,2]
[348422531,1736524267164,-2603.25117454,0.00010449,2]
[348422532,1736524267175,-152.58,0.00010494,2]
[348422533,1736524267186,-1747.53,0.00010495,2]
[348422534,1736524267196,-500.0,0.00010495,2]
[348422535,1736524267207,-1348.6,0.00010495,2]
[348422536,1736524267217,-3203.72,0.00010495,2]
[348422537,1736524267228,-1647.23,0.00010495,2]
[348422538,1736524267239,-1103.85,0.00010495,2]
[348422539,1736524267250,-1226.84,0.00010495,2]
[348422540,1736524267261,-843.28,0.00010495,2]
[348422541,1736524267272,-1796.31,0.00010495,2]
[348422542,1736524267282,-1043.14,0.00010495,2]
[348422543,1736524267292,-1316.27,0.00010495,2]
[348422544,1736524267303,-1311.99,0.00010495,2]
[348422545,1736524267314,-2157.87,0.00010495,2]
[348422546,1736524267325,-2366.16,0.00010495,2]
[348422547,1736524267337,-2149.91,0.00010495,2]
[348422548,1736524267348,-150.1,0.000105,2]
[348422549,1736524267359,-208.33693386,0.00010511,2]
[348422550,1736524267370,-2603.25117454,0.00010553,2]
[348422551,1736524267381,-8696.06,0.00010595,2]
[348422552,1736524267392,-1684.62,0.00010595,2]
[348422553,1736524267403,-1188.63,0.00010595,2]
[348422554,1736524267414,-1197.62,0.00010595,2]
[348422555,1736524267425,-2275.37,0.00010595,2]
[348422556,1736524267436,-662.96,0.00010595,2]
[348422557,1736524267446,-1191.38,0.00010595,2]
[348422558,1736524267457,-500.0,0.00010646,2]
[348422559,1736524267468,-500.0,0.00010653,2]
[348422560,1736524267479,-500.0,0.00010653,2]
[348422561,1736524267490,-500.0,0.00010653,2]
[348422562,1736524267502,-435.21408216,0.00010653,2]
[348422563,1736524267513,-500.0,0.00010653,2]
[348422564,1736524267523,-1593.59,0.00010653,2]
[348422565,1736524267539,-500.0,0.00010653,2]
[348422566,1736524267550,-1043.52,0.00010653,2]
[348422567,1736524267561,-500.0,0.00010653,2]
[348422568,1736524267573,-876.27,0.00010653,2]
[348422569,1736524267584,-500.0,0.00010653,2]
[348422570,1736524267594,-2264.41,0.00010653,2]
[348422571,1736524267606,-1584.14,0.00010653,2]
[348422572,1736524267617,-1819.95,0.00010653,2]
[348422573,1736524267628,-1002.74,0.00010653,2]
[348422574,1736524267641,-3030.78,0.00010653,2]
[348422575,1736524267652,-2135.04,0.00010653,2]
[348422576,1736524267662,-500.0,0.00010653,2]
[348422577,1736524267674,-1215.89,0.00010653,2]
[348422578,1736524267687,-1651.51,0.00010653,2]
[348422579,1736524267698,-3156.38,0.00010653,2]
[348422580,1736524267709,-500.0,0.00010653,2]
[348422581,1736524267720,-873.09,0.00010653,2]
[348422582,1736524267731,-965.26,0.00010653,2]
[348422583,1736524267741,-507.74,0.00010653,2]
[348422584,1736524267752,-570.26,0.00010653,2]
[348422585,1736524267764,-1258.78,0.00010653,2]
[348422586,1736524267776,-1471.01,0.00010653,2]
[348422587,1736524267788,-761.8,0.00010654,2]
[348422588,1736524267798,-500.0,0.00010654,2]
[348422589,1736524267809,-939.91,0.00010654,2]
[348422590,1736524267821,-961.78,0.00010654,2]
[348422591,1736524267831,-822.48,0.00010654,2]
[348422592,1736524267842,-566.63,0.00010654,2]
[348422593,1736524267852,-500.0,0.00010654,2]
[348422594,1736524267862,-500.0,0.00010654,2]
[348422595,1736524267872,-745.23,0.00010654,2]
[348422596,1736524267884,-1068.97,0.00010654,2]
[348422597,1736524267894,-822.16,0.00010654,2]
[348422598,1736524267905,-858.49,0.00010654,2]
[348422599,1736524267916,-846.15,0.00010654,2]
[348422600,1736524267928,-500.0,0.00010654,2]
[348422601,1736524267941,-500.0,0.00010654,2]
[348422602,1736524267951,-500.0,0.00010654,2]
[348422603,1736524267961,-500.0,0.00010654,2]
[348422604,1736524267973,-500.0,0.00010654,2]
[348422605,1736524267984,-1010.23,0.00010654,2]
[348422606,1736524267994,-1140.26,0.00010654,2]
[348422607,1736524268005,-709.1,0.00010654,2]
[348422608,1736524268017,-933.11,0.00010654,2]
[348422609,1736524268029,-1046.94,0.00010654,2]
[348422610,1736524268039,-602.2,0.00010654,2]
[348422611,1736524268050,-888.35,0.00010654,2]
[348422612,1736524268060,-500.0,0.00010654,2]
[348422613,1736524268071,-500.0,0.00010654,2]
[348422614,1736524268081,-627.38,0.00010654,2]
[348422615,1736524268091,-1166.68,0.00010654,2]
[348422616,1736524268101,-500.0,0.00010654,2]
[348422617,1736524268112,-967.77,0.00010654,2]
[348422618,1736524268122,-500.0,0.00010654,2]
[348422619,1736524268133,-500.0,0.00010654,2]
[348422620,1736524268145,-1005.93,0.00010654,2]
[348422621,1736524268156,-781.9,0.00010654,2]
[348422622,1736524268166,-2150.01,0.00010654,2]
[348422623,1736524268176,-500.0,0.00010654,2]
[348422624,1736524268186,-1052.34,0.00010654,2]
[348422625,1736524268196,-912.91,0.00010654,2]
[348422626,1736524268206,-1815.27,0.00010654,2]
[348422627,1736524268217,-856.07,0.00010654,2]
[348422628,1736524268229,-966.55,0.00010654,2]
[348422629,1736524268241,-1861.8,0.00010654,2]
[348422630,1736524268252,-688.9,0.00010654,2]
[348422631,1736524268264,-1068.54,0.00010654,2]
[348422632,1736524268277,-978.06,0.00010654,2]
[348422633,1736524268288,-500.0,0.00010654,2]
[348422634,1736524268299,-587.28,0.00010654,2]
[348422635,1736524268311,-877.06,0.00010654,2]
[348422636,1736524268322,-766.28,0.00010654,2]
[348422637,1736524268334,-2611.4,0.00010654,2]
[348422638,1736524268343,-1556.83,0.00010654,2]
[348422639,1736524268354,-826.2,0.00010654,2]
[348422640,1736524268365,-7495.58,0.00010654,2]
[348422641,1736524268375,-784.4,0.00010654,2]
[348422642,1736524268387,-797.2,0.00010654,2]
[348422643,1736524268396,-915.4,0.00010654,2]
[348422644,1736524268407,-1078.79,0.00010654,2]
[348422645,1736524268417,-1363.41,0.00010654,2]
[348422646,1736524268428,-1339.84,0.00010654,2]
[348422647,1736524268438,-1267.14,0.00010654,2]
[348422648,1736524268449,-1698.13,0.00010654,2]
[348422649,1736524268459,-949.94,0.00010654,2]
[348422650,1736524268469,-1813.78,0.00010654,2]
[348422651,1736524268480,-500.0,0.00010654,2]
[348422652,1736524268491,-500.0,0.00010654,2]
[348422653,1736524268502,-5166.39,0.00010654,2]
[348422654,1736524268511,-3593.7,0.00010654,2]
[348422655,1736524268522,-1020.92,0.00010654,2]
[348422656,1736524268533,-1241.67,0.00010654,2]
[348422657,1736524268543,-742.95,0.00010654,2]
[348422658,1736524268554,-675.3,0.00010654,2]
[348422659,1736524268564,-1052.3,0.00010654,2]
[348422660,1736524268574,-792.94,0.00010654,2]
[348422661,1736524268584,-675.43,0.00010655,2]
[348422662,1736524268595,-714.54,0.00010655,2]
[348422663,1736524268606,-500.0,0.00010655,2]
[348422664,1736524268617,-3297.03,0.00010655,2]
[348422665,1736524268629,-764.62,0.00010655,2]
[348422666,1736524268641,-500.0,0.00010655,2]
[348422667,1736524268652,-621.27,0.00010655,2]
[348422668,1736524268663,-500.0,0.00010655,2]
[348422669,1736524268673,-500.0,0.00010655,2]
[348422670,1736524268684,-500.0,0.00010655,2]
[348422671,1736524268695,-535.32,0.00010655,2]
[348422672,1736524268707,-1434.01,0.00010655,2]
[348422673,1736524268717,-500.0,0.00010655,2]
[348422674,1736524268728,-635.49,0.00010655,2]
[348422675,1736524268740,-1010.79,0.00010655,2]
[348422676,1736524268752,-500.0,0.00010655,2]
[348422677,1736524268764,-1419.64,0.00010655,2]
[348422678,1736524268777,-609.13,0.00010655,2]
[348422679,1736524268788,-1774.64,0.00010655,2]
[348422680,1736524268799,-1039.15,0.00010655,2]
[348422681,1736524268810,-528.76,0.00010655,2]
[348422682,1736524268822,-994.56,0.00010655,2]
[348422683,1736524268833,-593.02,0.00010655,2]
[348422684,1736524268845,-814.5,0.00010655,2]
[348422685,1736524268857,-1240.07,0.00010655,2]
[348422686,1736524269082,-868.17,0.00010655,2]
[348422687,1736524269093,-953.37,0.00010655,2]
[348422688,1736524269103,-500.0,0.00010655,2]
[348422689,1736524269113,-789.01,0.00010655,2]
[348422690,1736524269124,-1265.34,0.00010655,2]
[348422691,1736524269135,-500.0,0.00010655,2]
[348422692,1736524269145,-500.0,0.00010655,2]
[348422693,1736524269155,-3093.1,0.00010655,2]
[348422694,1736524269165,-864.42,0.00010655,2]
[348422695,1736524269176,-628.64,0.00010655,2]
[348422696,1736524269186,-500.0,0.00010655,2]
[348422697,1736524269195,-1402.75,0.00010655,2]
[348422698,1736524269205,-1766.75,0.00010655,2]
[348422699,1736524269214,-500.0,0.00010655,2]
[348422700,1736524269224,-555.91,0.00010655,2]
[348422701,1736524269235,-652.78,0.00010655,2]
[348422702,1736524269245,-608.24,0.00010655,2]
[348422703,1736524269256,-4401.25,0.00010655,2]
[348422704,1736524269266,-394.6,0.00010655,2]
[348422705,1736524269276,-500.0,0.00010655,2]
[348422706,1736524269285,-500.0,0.00010655,2]
[348422707,1736524269294,-500.0,0.00010655,2]
[348422708,1736524269304,-880.99,0.00010655,2]
[348422709,1736524269314,-4953.9,0.00010655,2]
[348422710,1736524269323,-500.0,0.00010655,2]
[348422711,1736524269333,-500.0,0.00010655,2]
[348422712,1736524269344,-1040.05,0.00010655,2]
[348422713,1736524269354,-500.0,0.00010655,2]
[348422714,1736524269363,-500.0,0.00010655,2]
[348422715,1736524269373,-728.84,0.00010655,2]
[348422716,1736524269384,-787.78,0.00010655,2]
[348422717,1736524269394,-901.88,0.00010655,2]
[348422718,1736524269405,-895.76,0.00010655,2]
[348422719,1736524269414,-677.22,0.00010655,2]
[348422720,1736524269424,-500.0,0.00010655,2]
[348422721,1736524269434,-812.91,0.00010655,2]
[348422722,1736524269444,-2539.7,0.00010655,2]
[348422723,1736524269453,-500.0,0.00010655,2]
[348422724,1736524269463,-500.0,0.00010655,2]
[348422725,1736524269472,-626.16,0.00010655,2]
[348422726,1736524269482,-500.0,0.00010655,2]
[348422727,1736524269492,-544.97,0.00010655,2]
[348422728,1736524269501,-500.0,0.00010655,2]
[348422729,1736524269511,-500.0,0.00010655,2]
[348422730,1736524269521,-707.45,0.00010655,2]
[348422731,1736524269532,-5186.84,0.00010655,2]
[348422732,1736524269543,-500.0,0.00010655,2]
[348422733,1736524269552,-500.0,0.00010655,2]
[348422734,1736524269562,-686.88,0.00010655,2]
[348422735,1736524269573,-500.0,0.00010655,2]
[348422736,1736524269582,-500.0,0.00010655,2]
[348422737,1736524269593,-657.79,0.00010655,2]
[348422738,1736524269604,-500.0,0.00010655,2]
[348422739,1736524269614,-856.71,0.00010655,2]
[348422740,1736524269623,-783.7,0.00010655,2]
[348422741,1736524269635,-794.78,0.00010655,2]
[348422742,1736524269645,-1062.86,0.00010655,2]
[348422743,1736524269655,-3899.76,0.00010655,2]
[348422744,1736524269666,-500.0,0.00010655,2]
[348422745,1736524269676,-500.0,0.00010655,2]
[348422746,1736524269685,-500.0,0.00010655,2]
[348422747,1736524269695,-500.0,0.00010655,2]
[348422748,1736524269705,-634.52,0.00010655,2]
[348422749,1736524269717,-1022.03,0.00010655,2]
[348422750,1736524269727,-939.3,0.00010655,2]
[348422751,1736524269738,-691.24,0.00010655,2]
[348422752,1736524269748,-4054.05,0.00010655,2]
[348422753,1736524269759,-813.45,0.00010655,2]
[348422754,1736524269769,-500.0,0.00010655,2]
[348422755,1736524269779,-500.0,0.00010655,2]
[348422756,1736524269788,-1362.38,0.00010655,2]
[348422757,1736524269798,-500.0,0.00010655,2]
[348422758,1736524269807,-1051.14,0.00010655,2]
[348422759,1736524269817,-1335.65,0.00010655,2]
[348422760,1736524269827,-941.46,0.00010655,2]
[348422761,1736524269838,-1314.49,0.00010655,2]
[348422762,1736524269847,-349.87564315,0.00010655,2]
[348422763,1736524269857,-500.0,0.00010655,2]
[348422764,1736524269868,-500.0,0.00010655,2]
[348422765,1736524269877,-500.0,0.00010655,2]
[348422766,1736524269889,-2098.32,0.00010655,2]
[348422767,1736524269900,-1156.61,0.00010655,2]
[348422768,1736524269911,-659.09,0.00010655,2]
[348422769,1736524269920,-500.0,0.00010655,2]
[348422770,1736524269933,-1381.15,0.00010655,2]
[348422771,1736524269944,-500.0,0.00010655,2]
[348422772,1736524269954,-500.0,0.00010655,2]
[348422773,1736524269965,-1912.15,0.00010655,2]
[348422774,1736524269975,-511.82,0.00010655,2]
[348422775,1736524269984,-951.49,0.00010655,2]
[348422776,1736524269993,-622.11,0.00010655,2]
[348422777,1736524270005,-467.37,0.00010655,2]
[348422778,1736524270015,-500.0,0.00010656,2]
[348422779,1736524270025,-500.0,0.00010656,2]
[348422780,1736524270036,-4721.83,0.00010656,2]
[348422781,1736524270047,-500.0,0.00010656,2]
[348422782,1736524270057,-952.88,0.00010656,2]
[348422783,1736524270066,-500.0,0.00010656,2]
[348422784,1736524270076,-705.22,0.00010656,2]
[348422785,1736524270086,-974.31,0.00010656,2]
[348422786,1736524270098,-1038.13,0.00010656,2]
[348422787,1736524270108,-500.0,0.00010656,2]
[348422788,1736524270118,-579.82,0.00010656,2]
[348422789,1736524270127,-1012.33,0.00010656,2]
[348422790,1736524270139,-648.63,0.00010656,2]
[348422791,1736524270148,-500.0,0.00010656,2]
[348422792,1736524270158,-571.87,0.00010656,2]
[348422793,1736524270167,-500.0,0.00010656,2]
[348422794,1736524270177,-1172.84,0.00010656,2]
[348422795,1736524270187,-796.64,0.00010656,2]
[348422796,1736524270197,-974.54,0.00010656,2]
[348422797,1736524270207,-1273.5,0.00010656,2]
[348422798,1736524270217,-659.75,0.00010656,2]
[348422799,1736524270228,-886.68,0.00010656,2]
[348422800,1736524270239,-500.0,0.00010656,2]
[348422801,1736524270248,-500.0,0.00010656,2]
[348422802,1736524270261,-1963.72,0.00010656,2]
[348422803,1736524270271,-2272.62,0.00010656,2]
[348422804,1736524270280,-1591.49,0.00010656,2]
[348422805,1736524270291,-6187.03,0.00010656,2]
[348422806,1736524270300,-2329.78,0.00010656,2]
[348422807,1736524270310,-1822.9,0.00010656,2]
[348422808,1736524270319,-2565.68,0.00010656,2]
[348422809,1736524270328,-1432.42,0.00010656,2]
[348422810,1736524270338,-3150.34,0.00010656,2]
[348422811,1736524270347,-979.82,0.00010658,2]
[348422812,1736524270356,-389.87,0.00010658,2]
[348422813,1736524270365,-1975.6,0.00010668,2]
[348422814,1736524270375,-1883.34,0.00010695,2]
[348422815,1736524270387,-1704.97,0.00010695,2]
[348422816,1736524270397,-772.13,0.00010695,2]
[348422817,1736524270407,-4013.17,0.00010695,2]
[348422818,1736524270416,-150.0,0.00010709,2]
[348422819,1736524270426,-150.0,0.00010713,2]
[348422820,1736524270435,-150.0,0.00010724,2]
[348422821,1736524270446,-150.0,0.00010732,2]
[348422822,1736524270457,-150.0,0.0001074,2]
[348422823,1736524270467,-2702.65876259,0.00010749,2]
[348422824,1736524270477,-208.33693386,0.0001075,2]
[348422825,1736524270486,-1747.53,0.00010769,2]
[348422826,1736524270496,-500.0,0.00010769,2]
[348422827,1736524270505,-1348.6,0.00010769,2]
[348422828,1736524270515,-3203.72,0.00010769,2]
[348422829,1736524270524,-1647.23,0.00010769,2]
[348422830,1736524270534,-1103.85,0.00010769,2]
[348422831,1736524270544,-1226.84,0.00010769,2]
[348422832,1736524270553,-843.28,0.00010769,2]
[348422833,1736524270563,-1796.31,0.00010769,2]
[348422834,1736524270574,-1043.14,0.00010769,2]
[348422835,1736524270584,-1316.27,0.00010769,2]
[348422836,1736524270593,-1311.99,0.00010769,2]
[348422837,1736524270603,-2157.87,0.00010769,2]
[348422838,1736524270614,-2366.16,0.00010769,2]
[348422839,1736524270624,-2149.91,0.00010769,2]
[348422840,1736524270634,-150.0,0.00010776,2]
[348422841,1736524270644,-154.767344,0.00010782,2]
[348422842,1736524270654,-4485.668703,0.000108,2]
[348422843,1736524270664,-7990.07708556,0.000108,2]
[348422844,1736524270673,-150.0,0.000108,2]
[348422845,1736524270683,-150.37541711,0.00010801,2]
[348422846,1736524270692,-150.0,0.00010805,2]
[348422847,1736524270702,-13596.99568756,0.00010827,2]
[348422848,1736524270711,-314904.07323803,0.00010835,2]
[348422849,1736524271094,-74719.62126831,0.00010835,2]
[348422850,1736524271105,-500.0,0.00010849,2]
[348422851,1736524271116,-1000.0,0.00010858,2]
[348422852,1736524271125,-150.0,0.0001086,2]
[348422853,1736524271137,-150.0,0.0001086,2]
[348422854,1736524271147,-150.0,0.00010864,2]
[348422855,1736524271156,-8696.06,0.00010869,2]
[348422856,1736524271166,-1684.62,0.00010869,2]
[348422857,1736524271176,-1188.63,0.00010869,2]
[348422858,1736524271186,-1197.62,0.00010869,2]
[348422859,1736524271197,-2275.37,0.00010869,2]
[348422860,1736524271208,-662.96,0.00010869,2]
[348422861,1736524271220,-1191.38,0.00010869,2]
[348422862,1736524271229,-3000.0,0.0001087,2]
[348422863,1736524271240,-150.60824624,0.00010876,2]
[348422864,1736524271250,-23537.63373074,0.0001088,2]
[348422865,1736524271259,-150.0,0.00010892,2]
[348422866,1736524271269,-836.6622789,0.000109,2]
[348422867,1736524271278,-150.0,0.000109,2]
[348422868,1736524271288,-584.27805932,0.000109,2]
[348422869,1736524271297,-478.18951071,0.000109,2]
[348422870,1736524271307,-478.18951064,0.000109,2]
[348422871,1736524271316,-478.18951064,0.000109,2]
[348422872,1736524271325,-478.18951064,0.000109,2]
[348422873,1736524271335,-500.0,0.00010927,2]
[348422874,1736524271344,-267.51651637,0.00010927,2]
[348422875,1736524271354,-500.0,0.00010927,2]
[348422876,1736524271363,-500.0,0.00010927,2]
[348422877,1736524271372,-1593.59,0.00010927,2]
[348422878,1736524271381,-500.0,0.00010927,2]
[348422879,1736524271395,-1043.52,0.00010927,2]
[348422880,1736524271404,-500.0,0.00010927,2]
[348422881,1736524271413,-876.27,0.00010927,2]
[348422882,1736524271423,-500.0,0.00010927,2]
[348422883,1736524271432,-2264.41,0.00010927,2]
[348422884,1736524271442,-1819.95,0.00010927,2]
[348422885,1736524271452,-1002.74,0.00010927,2]
[348422886,1736524271461,-3030.78,0.00010927,2]
[348422887,1736524271471,-2135.04,0.00010927,2]
[348422888,1736524271480,-500.0,0.00010927,2]
[348422889,1736524271490,-1215.89,0.00010927,2]
[348422890,1736524271499,-1651.51,0.00010927,2]
[348422891,1736524271509,-3156.38,0.00010927,2]
[348422892,1736524271518,-428.43697225,0.00010927,2]
[348422893,1736524271528,-873.09,0.00010927,2]
[348422894,1736524271538,-965.26,0.00010927,2]
[348422895,1736524271547,-507.74,0.00010927,2]
[348422896,1736524271556,-570.26,0.00010927,2]
[348422897,1736524271565,-1258.78,0.00010927,2]
[348422898,1736524271574,-1471.01,0.00010927,2]
[348422899,1736524271584,-761.8,0.00010928,2]
[348422900,1736524271593,-500.0,0.00010928,2]
[348422901,1736524271602,-939.91,0.00010928,2]
[348422902,1736524271611,-961.78,0.00010928,2]
[348422903,1736524271621,-822.48,0.00010928,2]
[348422904,1736524271631,-566.63,0.00010928,2]
[348422905,1736524271643,-500.0,0.00010928,2]
[348422906,1736524271652,-500.0,0.00010928,2]
[348422907,1736524271662,-745.23,0.00010928,2]
[348422908,1736524271671,-1068.97,0.00010928,2]
[348422909,1736524271681,-822.16,0.00010928,2]
[348422910,1736524271690,-858.49,0.00010928,2]
[348422911,1736524271699,-846.15,0.00010928,2]
[348422912,1736524271708,-505.80420499,0.00010928,2]
[348422913,1736524271718,-500.0,0.00010928,2]
[348422914,1736524271728,-500.0,0.00010928,2]
[348422915,1736524271737,-500.0,0.00010928,2]
[348422916,1736524271747,-500.0,0.00010928,2]
[348422917,1736524271757,-1010.23,0.00010928,2]
[348422918,1736524271766,-1140.26,0.00010928,2]
[348422919,1736524271775,-709.1,0.00010928,2]
[348422920,1736524271784,-933.11,0.00010928,2]
[348422921,1736524271794,-1046.94,0.00010928,2]
[348422922,1736524271804,-602.2,0.00010928,2]
[348422923,1736524271814,-888.35,0.00010928,2]
[348422924,1736524271824,-500.0,0.00010928,2]
[348422925,1736524271834,-1000.0,0.00010928,2]
[348422926,1736524271843,-1000.0,0.00010928,2]
[348422927,1736524271852,-1000.0,0.00010928,2]
[348422928,1736524271862,-1000.0,0.00010928,2]
[348422929,1736524271872,-1000.0,0.00010928,2]
[348422930,1736524271882,-1000.0,0.00010928,2]
[348422931,1736524271894,-500.0,0.00010928,2]
[348422932,1736524271904,-1000.0,0.00010928,2]
[348422933,1736524271914,-1000.0,0.00010928,2]
[348422934,1736524271924,-1000.0,0.00010928,2]
[348422935,1736524271936,-1000.0,0.00010928,2]
[348422936,1736524271946,-1000.0,0.00010928,2]
[348422937,1736524271956,-1000.0,0.00010928,2]
[348422938,1736524271966,-1000.0,0.00010928,2]
[348422939,1736524271976,-1000.0,0.00010928,2]
[348422940,1736524271985,-1000.0,0.00010928,2]
[348422941,1736524271995,-1000.0,0.00010928,2]
[348422942,1736524272006,-1000.0,0.00010928,2]
[348422943,1736524272017,-1000.0,0.00010928,2]
[348422944,1736524272027,-1000.0,0.00010928,2]
[348422945,1736524272037,-1000.0,0.00010928,2]
[348422946,1736524272243,-1000.0,0.00010928,2]
[348422947,1736524272254,-942.81675555,0.00010928,2]